bitfinex/quotes_ETHUSD_20240907
["timestamp","ask_amount","ask_price","bid_price","bid_amount"]
[1725715438985,0.45478516,2300.0,2299.9,12.56622224]
[1725715439189,0.45478516,2300.0,2299.9,14.08049849]
[1725715439409,0.45478516,2300.0,2299.9,12.56622224]
[1725715440669,0.45478516,2300.0,2299.9,18.42853243]
[1725715440903,0.45478516,2300.0,2299.9,26.45746158]
[1725715441113,0.20976754,2300.0,2299.9,26.0497638]
[1725715441276,8.819334,2300.8,2300.3,6.8146]
[1725715441612,1.549334,2300.6,2300.4,1.50628045]
[1725715441778,1.549334,2300.6,2300.4,1.41934821]
[1725715443009,1.549334,2300.6,2300.4,0.25951721]
[1725715444510,1.549334,2300.6,2300.2,4.78371]
[1725715444511,5.896044,2300.6,2300.2,0.4363]
[1725715444698,1.549334,2300.4,2300.1,0.4363]
[1725715445007,1.549334,2300.4,2300.0,8.69539]
[1725715445313,3.930634,2300.4,2300.0,4.34768]
[1725715446721,3.930634,2300.4,2300.0,8.6954]
[1725715447289,3.930634,2300.4,2300.0,4.34768]
[1725715447483,3.930634,2300.4,2300.0,8.69541]
[1725715447812,3.930634,2300.4,2300.0,4.34768]
[1725715448682,3.930634,2300.4,2300.1,4.34763]
[1725715448926,3.930634,2300.4,2300.0,4.34768]
[1725715451179,1.549334,2300.2,2299.9,4.34791]
[1725715451418,2.3127,2300.1,2299.9,4.34791]
[1725715452730,2.3127,2300.1,2299.8,4.78436]
[1725715453213,2.3127,2300.1,2299.8,9.21942401]
[1725715454311,1.549334,2300.2,2299.8,9.21942401]
[1725715455619,0.4547063,2300.1,2299.8,9.21942401]
[1725715456640,0.4547063,2300.1,2299.9,0.25955576]
[1725715457744,3.892034,2300.0,2299.9,0.25955576]
[1725715458057,3.892034,2300.0,2299.7,0.4363]
[1725715458058,1.549334,2300.0,2299.7,0.4363]
[1725715458221,1.549334,2300.0,2299.9,0.25989482]
[1725715458418,1.549334,2300.0,2299.8,0.2599687]
[1725715458770,1.549334,2300.0,2299.9,0.25989482]
[1725715459107,0.4547063,2300.1,2300.0,4.34782]
[1725715459346,0.4547063,2300.1,2300.0,11.40785193]
[1725715459858,0.4547063,2300.1,2300.0,4.60773193]
[1725715465321,0.4547063,2300.1,2300.0,0.25991193]
[1725715466848,0.4547063,2300.1,2299.8,4.34806]
[1725715467043,0.4547063,2300.1,2300.0,0.25984575]
[1725715467254,0.4547063,2300.1,2299.9,0.25991963]
[1725715467418,0.4547063,2300.1,2300.0,0.25984575]
[1725715467824,0.4547063,2300.1,2299.8,4.34806]
[1725715468118,0.4547063,2300.1,2299.9,0.25991963]
[1725715468354,1.75885733,2300.1,2299.9,0.25991963]
[1725715471050,2.3724,2300.0,2299.9,0.25991963]
[1725715471352,2.3724,2300.0,2299.9,0.26008506]
[1725715471647,2.3724,2300.0,2299.7,4.34834]
[1725715471821,2.3724,2300.0,2299.9,0.26008506]
[1725715472022,2.3724,2300.0,2299.8,0.26015894]
[1725715472326,2.3724,2300.0,2299.9,0.26008506]
[1725715472530,0.4547063,2300.1,2299.8,4.34818]
[1725715472821,0.4547063,2300.1,2299.9,0.26008506]
[1725715485157,2.4907,2300.0,2299.9,0.26008506]
[1725715485466,2.4907,2300.0,2299.6,4.78476]
[1725715485667,2.4907,2300.0,2299.9,0.26027529]
[1725715485878,2.4907,2300.0,2299.6,4.78476]
[1725715486070,2.4907,2300.0,2299.9,0.26027529]
[1725715486263,2.4907,2300.0,2299.6,4.78476]
[1725715486801,2.4907,2300.0,2299.7,0.26042306]
[1725715495557,6.83855,2300.0,2299.7,0.26042306]
[1725715496149,8.387884,2300.0,2299.7,0.26042306]
[1725715497228,0.45477794,2299.9,2299.7,0.26042306]
[1725715497563,2.3456,2299.8,2299.5,4.78504]
[1725715497868,2.3456,2299.8,2299.5,5.943193]
[1725715498437,3.894934,2299.6,2299.4,0.4363]
[1725715498739,3.894934,2299.6,2299.2,4.34919]
[1725715499962,3.894934,2299.6,2299.1,0.4363]
[1725715499963,2.3456,2299.3,2299.1,0.4363]
[1725715500476,2.3456,2299.3,2299.0,8.69912]
[1725715500837,2.3456,2299.3,2299.1,4.34951]
[1725715501064,2.3456,2299.3,2299.0,4.34955]
[1725715501379,1.549334,2299.2,2298.8,4.34996]
[1725715501734,1.549334,2299.2,2298.9,0.26156048]
[1725715502145,3.0,2299.6,2299.4,4.34878]
[1725715502355,4.549334,2299.6,2299.2,4.3492]
[1725715502567,4.549334,2299.6,2299.3,4.34905]
[1725715503031,4.549334,2299.6,2299.4,0.26119084]
[1725715503233,4.549334,2299.6,2299.4,4.61013084]
[1725715503433,1.549334,2299.6,2299.4,4.61013084]
[1725715503641,1.549334,2299.6,2299.4,5.57839592]
[1725715503874,1.549334,2299.6,2299.4,9.92724592]
[1725715504085,1.549334,2299.6,2299.5,4.34877]
[1725715504301,1.549334,2299.6,2299.4,5.57830592]
[1725715504455,1.549334,2299.6,2299.5,0.26111693]
[1725715505085,4.549334,2299.8,2299.5,0.26111693]
[1725715505458,4.549334,2299.8,2299.5,4.60988693]
[1725715506190,4.549334,2299.8,2299.5,0.26111693]
[1725715507190,4.549334,2299.8,2299.5,4.60984693]
[1725715507494,0.45477794,2299.9,2299.6,4.34855]
[1725715507647,0.45477794,2299.9,2299.6,8.69704]
[1725715507853,0.45477794,2299.9,2299.7,0.2612753]
[1725715508361,0.45477794,2299.9,2299.7,4.6095753]
[1725715508555,0.45477794,2299.9,2299.8,0.89580653]
[1725715508755,0.45477794,2299.9,2299.7,4.6095753]
[1725715508954,0.45477794,2299.9,2299.8,0.26120141]
[1725715509281,0.45477794,2299.9,2299.7,4.3483]
[1725715509602,0.45477794,2299.9,2299.8,0.26120141]
[1725715509807,0.45477794,2299.9,2299.7,4.3483]
[1725715510167,0.45477794,2299.9,2299.8,0.26120141]
[1725715510501,0.45477794,2299.9,2299.7,4.3483]
[1725715510794,0.45477794,2299.9,2299.8,0.26120141]
[1725715511096,0.45477794,2299.9,2299.7,4.3483]
[1725715511307,0.45477794,2299.9,2299.8,0.25245107]
[1725715511659,0.45477794,2299.9,2299.7,4.3483]
[1725715511861,0.45477794,2299.9,2299.8,0.25245107]
[1725715512709,0.45477794,2299.9,2299.7,4.3483]
[1725715513003,0.45477794,2299.9,2299.8,4.60065107]
[1725715515608,0.45477794,2299.9,2299.8,0.25245107]
[1725715515901,2.00411194,2299.9,2299.7,4.3483]
[1725715516071,2.00411194,2299.9,2299.8,0.25210354]
[1725715516587,2.00411194,2299.9,2299.8,0.24364488]
[1725715516759,2.87384713,2299.9,2299.6,4.34852]
[1725715517092,2.00411194,2299.9,2299.8,0.24364488]
[1725715517267,4.30471194,2299.9,2299.7,0.24371877]
[1725715517468,4.30471194,2299.9,2299.8,0.24364488]
[1725715517862,4.30471194,2299.9,2299.6,4.34852]
[1725715518063,4.30471194,2299.9,2299.8,0.24364488]
[1725715519016,4.30471194,2299.9,2299.6,4.34852]
[1725715519385,4.30471194,2299.9,2299.8,0.24364488]
[1725715519717,4.30471194,2299.9,2299.7,0.24371877]
[1725715520025,4.30471194,2299.9,2299.8,0.24364488]
[1725715520202,4.30471194,2299.9,2299.6,4.34852]
[1725715520374,3.849934,2299.9,2299.5,8.69727]
[1725715520575,3.849934,2299.9,2299.7,0.2434457]
[1725715520836,3.849934,2299.9,2299.5,8.69727]
[1725715521340,3.849934,2299.9,2299.6,4.34854]
[1725715521608,3.849934,2299.9,2299.6,4.5920596]
[1725715522401,8.198014,2299.9,2299.6,0.2435196]
[1725715523878,1.549334,2299.7,2299.6,0.2435196]
[1725715524113,1.549334,2299.7,2299.4,4.34895]
[1725715524439,1.549334,2299.7,2299.6,0.2435196]
[1725715524917,1.549334,2299.7,2299.4,4.34895]
[1725715525216,1.549334,2299.7,2299.6,0.2435196]
[1725715525418,1.549334,2299.7,2299.5,0.2435935]
[1725715525593,1.549334,2299.7,2299.6,0.2435196]
[1725715525778,1.549334,2299.7,2299.4,4.34895]
[1725715525980,1.549334,2299.7,2299.5,0.2435935]
[1725715528189,1.549334,2299.7,2299.3,4.349]
[1725715528190,2.3006,2299.6,2299.3,4.349]
[1725715528397,1.549334,2299.7,2299.4,0.24366741]
[1725715531299,1.549334,2299.7,2299.4,4.59259741]
[1725715537099,1.549334,2299.7,2299.5,4.34876]
[1725715537554,1.549334,2299.7,2299.6,0.24366027]
[1725715538037,1.549334,2299.7,2299.6,4.59224027]
[1725715539136,4.549334,2299.9,2299.6,4.59224027]
[1725715540732,4.549334,2299.9,2299.7,4.34839]
[1725715541253,7.27,2300.2,2300.0,4.3478]
[1725715541403,3.83480523,2300.4,2300.1,0.24335704]
[1725715541616,1.549334,2300.2,2300.1,0.24335704]
[1725715542720,1.549334,2300.2,2299.8,6.75235]
[1725715542920,1.549334,2300.2,2300.1,0.24313368]
[1725715543116,1.549334,2300.2,2299.8,6.75235]
[1725715543359,1.549334,2300.2,2300.1,0.23457247]
[1725715543528,1.549334,2300.2,2299.8,4.34805]
[1725715543529,13.66208523,2300.2,2299.8,4.34805]
[1725715543852,9.31460523,2300.2,2300.1,0.23457247]
[1725715544036,10.9550513,2300.2,2300.1,0.23457247]
[1725715544256,10.9550513,2300.2,2299.8,4.34805]
[1725715544746,10.9550513,2300.2,2299.9,0.23472021]
[1725715545623,10.95454119,2300.2,2299.9,0.23472021]
[1725715546850,4.549334,2300.2,2300.0,4.34773]
[1725715547051,4.549334,2300.2,2300.1,0.23457247]
[1725715548332,3.0,2300.2,2300.1,0.23457247]
[1725715548547,5.28496112,2300.3,2300.1,0.23457247]
[1725715550454,3.0,2300.3,2300.1,0.23457247]
[1725715551152,1.549334,2300.2,2300.1,0.23457247]
[1725715551359,4.549334,2300.2,2300.1,0.23457247]
[1725715553666,10.21503263,2300.2,2300.1,0.23457247]
[1725715553881,7.93007151,2300.2,2299.8,4.34819]
[1725715554063,9.09689512,2300.2,2299.9,0.22678421]
[1725715554731,1.549334,2300.0,2299.9,0.22678421]
[1725715555052,4.34803,2299.9,2299.7,0.4363]
[1725715555253,1.549334,2299.8,2299.7,0.4363]
[1725715560779,3.0,2299.9,2299.7,0.4363]
[1725715561138,3.0,2299.9,2299.7,7.12299]
[1725715561685,4.549334,2300.0,2299.8,0.21925006]
[1725715561842,4.549334,2300.0,2299.7,7.12299]
[1725715562241,4.549334,2300.0,2299.8,4.56740006]
[1725715562961,3.0,2300.1,2299.8,4.56740006]
[1725715564052,3.0,2300.1,2299.9,4.34786]
[1725715564255,3.0,2300.1,2300.0,0.21933294]
[1725715564866,2.28459447,2300.3,2300.1,4.34763]
[1725715565045,10.46843226,2300.7,2300.6,8.69338]
[1725715565046,7.27,2300.7,2300.6,8.69338]
[1725715565253,5.52543226,2301.3,2300.8,4.34631]
[1725715565254,2.28459447,2301.0,2300.8,4.34631]
[1725715565467,2.28459447,2301.1,2300.8,4.34631]
[1725715565666,11.146334,2301.3,2300.9,0.21861892]
[1725715565667,2.28459447,2301.2,2300.9,0.21861892]
[1725715565890,3.83392847,2301.1,2300.9,0.21861892]
[1725715566474,3.0,2301.0,2300.9,0.21861892]
[1725715566787,3.0,2301.1,2300.9,4.56472892]
[1725715566985,3.0,2301.2,2300.9,4.56472892]
[1725715567397,3.0,2301.2,2300.9,0.21861892]
[1725715568082,2.28459447,2301.4,2301.0,2.3384]
[1725715568405,7.27,2301.7,2301.4,4.34518]
[1725715568697,1.549334,2302.0,2301.6,4.34469]
[1725715569000,1.549334,2302.0,2301.7,0.21707365]
[1725715569153,5.3952155,2302.0,2301.7,0.21707365]
[1725715569502,5.3952155,2302.0,2301.5,4.34497]
[1725715569793,1.549334,2301.6,2301.1,4.34565]
[1725715569998,3.71368975,2301.6,2301.1,4.34565]
[1725715571192,3.71368975,2301.6,2301.2,4.34551]
[1725715573577,9.29880673,2301.6,2301.1,4.34563]
[1725715573774,2.3431,2301.1,2300.5,4.34673]
[1725715573980,8.36534198,2301.0,2300.5,4.34673]
[1725715574515,12.71140198,2301.0,2300.5,4.34673]
[1725715574723,4.34613,2300.9,2300.4,4.34705]
[1725715575009,13.1640181,2300.8,2300.3,4.34707]
[1725715575177,3.71368975,2300.6,2300.1,4.34753]
[1725715575375,3.71368975,2300.6,2300.1,9.371443]
[1725715576107,3.71368975,2300.6,2300.2,4.34744]
[1725715576691,3.71368975,2300.6,2300.3,0.2169216]
[1725715577489,2.3431,2300.7,2300.3,0.2169216]
[1725715577830,3.71368975,2300.6,2300.3,0.2169216]
[1725715578000,8.06037975,2300.6,2300.3,0.2169216]
[1725715578514,8.06037975,2300.6,2300.1,4.34753]
[1725715578697,8.06037975,2300.6,2300.2,0.21699545]
[1725715578914,12.40716975,2300.6,2300.2,0.21699545]
[1725715579123,8.06037975,2300.6,2300.2,0.21699545]
[1725715580599,3.71368975,2300.6,2300.3,4.34724]
[1725715580997,3.71368975,2300.6,2300.4,0.21732509]
[1725715581935,3.71368975,2300.8,2300.4,0.21732509]
[1725715582306,8.06002975,2300.8,2300.4,0.21732509]
[1725715594952,4.34634,2300.8,2300.4,0.21732509]
[1725715595152,4.34634,2300.8,2300.4,4.56437509]
[1725715599565,4.34634,2300.8,2300.4,0.21732509]
[1725715602369,4.34634,2300.8,2300.4,4.56433509]
[1725715603243,4.34634,2300.8,2300.4,4.34701]
[1725715603975,5.89481336,2300.8,2300.4,4.34701]
[1725715604473,1.54847336,2300.8,2300.4,4.34701]
[1725715604791,1.54847336,2300.8,2300.5,0.21185198]
[1725715605138,4.34614,2300.9,2300.5,0.21185198]
[1725715605344,1.54847336,2300.8,2300.5,0.21185198]
[1725715607470,1.8216453,2301.0,2300.7,4.34637]
[1725715607779,1.54847336,2300.9,2300.8,0.21163048]
[1725715608137,1.54847336,2300.9,2300.8,4.34621]
[1725715608339,1.54847336,2300.9,2300.8,4.55784048]
[1725715608577,1.54847336,2300.9,2300.8,0.21163048]
[1725715608978,1.54847336,2300.9,2300.7,4.34637]
[1725715609219,1.54847336,2300.9,2300.8,0.21150701]
[1725715609487,1.54847336,2300.9,2300.7,8.69279]
[1725715609650,1.54847336,2300.9,2300.8,0.21150701]
[1725715609848,1.54847336,2300.9,2300.7,4.34637]
[1725715610149,1.54847336,2300.9,2300.8,0.21150701]
[1725715610558,1.54847336,2300.9,2300.7,4.34637]
[1725715610787,1.54847336,2300.9,2300.8,0.21150701]
[1725715611172,1.54847336,2300.9,2300.7,4.34637]
[1725715611367,1.54847336,2300.9,2300.8,0.21150701]
[1725715611767,1.54847336,2300.9,2300.7,4.34637]
[1725715611970,1.54847336,2300.9,2300.8,0.21150701]
[1725715612378,1.54847336,2300.9,2300.7,4.34637]
[1725715612584,1.54847336,2300.9,2300.8,0.21150701]
[1725715612951,1.54847336,2300.9,2300.7,8.69279]
[1725715613157,1.54847336,2300.9,2300.8,4.55781701]
[1725715617474,3.37011866,2300.9,2300.8,4.55781701]
[1725715617886,1.54847336,2300.9,2300.8,4.55781701]
[1725715619200,1.54847336,2300.9,2300.8,0.21150701]
[1725715619400,3.37011866,2300.9,2300.8,0.21150701]
[1725715619603,3.37011866,2300.9,2300.7,8.69276]
[1725715619913,3.37011866,2300.9,2300.8,0.21138355]
[1725715620080,3.37011866,2300.9,2300.7,8.69276]
[1725715620446,3.37011866,2300.9,2300.8,0.21138355]
[1725715621084,3.37011866,2300.9,2300.7,8.69276]
[1725715621274,3.37011866,2300.9,2300.8,0.21138355]
[1725715621495,4.39821658,2300.9,2300.5,4.34687]
[1725715621711,3.37604789,2300.7,2300.4,4.78327]
[1725715621895,3.37604789,2300.7,2300.5,4.55847504]
[1725715622102,3.37604789,2300.7,2300.5,0.21160504]
[1725715624623,1.82757453,2300.6,2300.5,0.21160504]
[1725715625226,3.37604789,2300.7,2300.5,0.21160504]
[1725715625429,1.82757453,2300.6,2300.5,0.21160504]
[1725715626712,9.55068503,2300.6,2300.5,0.21160504]
[1725715626912,4.34707,2300.4,2300.3,0.4363]
[1725715627164,12.59571336,2300.4,2300.3,0.64796219]
[1725715627522,15.59571336,2300.4,2300.3,0.4363]
[1725715627746,15.59571336,2300.4,2299.8,0.87200355]
[1725715627747,4.3473,2300.3,2299.9,0.4363]
[1725715627994,1.54847336,2300.0,2299.9,0.4363]
[1725715628165,6.37648618,2300.0,2299.9,0.4363]
[1725715629516,4.54847336,2300.0,2299.9,0.4363]
[1725715630352,4.54847336,2300.0,2299.6,0.4363]
[1725715630517,1.54847336,2299.8,2299.6,0.4363]
[1725715631152,4.54847336,2300.0,2299.6,1.3598324]
[1725715631332,4.54847336,2300.0,2299.8,0.4363]
[1725715631869,1.54847336,2300.0,2299.8,0.4363]
[1725715636061,1.54847336,2300.0,2299.8,4.78449]
[1725715636568,1.54847336,2300.0,2299.9,0.6425672]
[1725715638068,1.54847336,2300.0,2299.9,4.9905772]
[1725715638243,1.54847336,2300.0,2299.9,0.6425672]
[1725715640073,4.54847336,2300.2,2299.9,4.9905772]
[1725715640236,1.54847336,2300.2,2300.1,0.4363]
[1725715640653,1.54847336,2300.2,2300.1,0.63550026]
[1725715649934,3.0,2300.3,2300.1,4.98313026]
[1725715650270,4.54847336,2300.4,2300.1,4.98313026]
[1725715650780,4.54847336,2300.4,2300.1,0.63550026]
[1725715651142,4.54847336,2300.4,2300.1,0.4363]
[1725715652635,4.54847336,2300.4,2300.2,0.63488443]
[1725715658193,3.0,2300.4,2300.3,4.34725]
[1725715658398,1.82801282,2300.6,2300.4,4.34694]
[1725715658399,4.54847336,2300.6,2300.4,4.34694]
[1725715658554,1.54847336,2300.6,2300.4,4.34694]
[1725715658754,1.54847336,2300.6,2300.5,0.19740366]
[1725715659988,3.85837336,2300.6,2300.5,0.19740366]
[1725715660204,18.24485255,2300.6,2300.2,0.4363]
[1725715660492,1.54847336,2300.4,2300.2,0.4363]
[1725715661581,1.54847336,2300.4,2300.3,0.19742785]
[1725715661978,1.54847336,2300.4,2300.2,0.4363]
[1725715662178,1.54847336,2300.4,2300.3,0.19742785]
[1725715662427,1.54847336,2300.4,2300.2,0.4363]
[1725715662714,1.54847336,2300.4,2300.3,0.19742785]
[1725715662902,1.54847336,2300.4,2300.2,0.4363]
[1725715663100,1.54847336,2300.4,2300.1,0.4363]
[1725715663384,1.54847336,2300.4,2300.2,0.6338017]
[1725715664399,3.37648618,2300.4,2300.2,0.6338017]
[1725715664721,3.37648618,2300.4,2300.2,0.4363]
[1725715664722,3.0,2300.3,2300.2,0.4363]
[1725715665228,6.37648618,2300.4,2300.2,0.6338017]
[1725715665721,6.37648618,2300.4,2300.2,0.4363]
[1725715666987,6.37648618,2300.4,2300.3,0.19737018]
[1725715667186,4.54847336,2300.4,2300.3,0.19737018]
[1725715667414,6.37648618,2300.4,2300.1,4.78391]
[1725715667614,6.37648618,2300.4,2300.3,0.19737018]
[1725715667821,6.37648618,2300.4,2300.2,0.63374404]
[1725715668052,6.37648618,2300.4,2300.3,0.19737018]
[1725715668690,6.37648618,2300.4,2300.2,0.4363]
[1725715668913,8.34273459,2300.4,2300.2,0.4363]
[1725715669806,1.82801282,2300.3,2300.1,0.4363]
[1725715670037,1.54847336,2300.2,2300.1,0.4363]
[1725715670640,3.80527336,2300.2,2300.1,0.4363]
[1725715671138,4.34801,2300.0,2299.6,2.3552]
[1725715671301,1.54847336,2299.8,2299.6,2.3552]
[1725715672698,1.54847336,2299.8,2299.6,6.70376]
[1725715673698,3.37661049,2300.0,2299.6,6.70376]
[1725715673897,1.54847336,2300.0,2299.6,6.70376]
[1725715674097,6.37661049,2300.0,2299.6,6.70376]
[1725715676420,6.37661049,2300.0,2299.7,4.34839]
[1725715676629,6.37661049,2300.0,2299.8,4.34819]
[1725715677746,6.37661049,2300.0,2299.7,4.34839]
[1725715677955,2.3234,2299.9,2299.7,4.34839]
[1725715681770,2.3234,2299.9,2299.8,0.1985714]
[1725715681924,6.37661049,2300.0,2299.8,0.1985714]
[1725715682124,4.82813713,2300.0,2299.9,4.34801]
[1725715682359,1.82813713,2300.1,2299.9,7.25860852]
[1725715682662,1.54847336,2300.2,2299.9,7.25860852]
[1725715682820,4.54847336,2300.2,2299.9,7.25860852]
[1725715683023,4.54847336,2300.2,2299.9,7.060111]
[1725715683454,4.54847336,2300.2,2300.0,0.19844012]
[1725715684024,4.54847336,2300.2,2300.0,4.54626012]
[1725715685627,6.37661049,2300.2,2300.0,4.54626012]
[1725715685922,4.54847336,2300.2,2300.0,4.54626012]
[1725715686323,3.0,2300.2,2300.0,4.54626012]
[1725715686522,1.54847336,2300.2,2300.0,4.54626012]
[1725715686735,4.54847336,2300.2,2300.0,4.54626012]
[1725715690279,6.37661049,2300.2,2300.0,4.54626012]
[1725715690644,4.54847336,2300.2,2300.0,4.54626012]
[1725715691181,6.37661049,2300.2,2300.0,4.54626012]
[1725715691385,4.54847336,2300.2,2300.0,4.54626012]
[1725715692695,1.82813713,2300.9,2300.7,4.3465]
[1725715692977,9.55496529,2301.0,2300.8,4.34631]
[1725715692978,1.82813713,2301.0,2300.8,4.34631]
[1725715693196,3.37661049,2301.1,2300.8,4.54378865]
[1725715693984,3.0,2301.0,2300.8,4.54378865]
[1725715694144,3.0,2301.0,2300.9,4.34612]
[1725715694344,1.54847336,2301.1,2300.9,4.34612]
[1725715694545,1.54847336,2301.1,2300.9,4.54350013]
[1725715694845,1.82813713,2301.2,2300.9,4.54350013]
[1725715695154,3.0,2301.2,2301.0,4.34592]
[1725715695685,3.0,2301.2,2301.1,0.19663146]
[1725715695841,3.86615758,2301.2,2301.1,0.19663146]
[1725715696685,1.82813713,2301.3,2301.1,4.54228146]
[1725715696846,3.37661049,2301.4,2301.1,4.54228146]
[1725715697248,1.54847336,2301.4,2301.1,4.54228146]
[1725715698094,1.54847336,2301.2,2301.1,0.19663146]
[1725715706672,1.54847336,2301.2,2301.1,4.54237146]
[1725715708388,1.54847336,2301.2,2301.1,0.19663146]
[1725715710115,1.54847336,2301.2,2301.1,4.54237146]
[1725715710322,4.54847336,2301.4,2301.1,4.54237146]
[1725715710677,5.6813907,2301.4,2301.1,4.54237146]
[1725715711528,5.6813907,2301.4,2301.1,4.34574]
[1725715712624,4.54847336,2301.4,2301.2,4.54132376]
[1725715714031,4.54847336,2301.4,2301.2,0.19578376]
[1725715717338,5.00384306,2301.4,2301.2,0.19578376]
[1725715717485,0.4553697,2301.4,2301.3,4.34537]
[1725715717688,0.4553697,2301.4,2301.3,4.53863155]
[1725715719014,0.4553697,2301.4,2301.3,10.02061771]
[1725715720819,0.4553697,2301.4,2301.3,14.80228771]
[1725715721245,0.4553697,2301.4,2301.3,17.21028771]
[1725715721419,0.4553697,2301.4,2301.3,17.76028771]
[1725715725057,0.4553697,2301.4,2301.3,12.86491771]
[1725715738405,0.4553697,2301.4,2301.3,10.45691771]
[1725715739499,0.4553697,2301.4,2301.3,9.32030155]
[1725715742002,0.4553697,2301.4,2301.3,13.66567155]
[1725715742619,0.4553697,2301.4,2301.3,13.22937155]
[1725715743016,0.4553697,2301.4,2301.3,15.67777155]
[1725715761433,0.4553697,2301.4,2301.3,16.22777155]
[1725715761740,0.4553697,2301.4,2301.3,18.3395756]
[1725715761942,0.4553697,2301.4,2301.3,22.6849456]
[1725715764237,0.4553697,2301.4,2301.3,23.2296399]
[1725715765259,0.4553697,2301.4,2301.3,24.74296183]
[1725715765464,0.4553697,2301.4,2301.3,27.01287954]
[1725715766475,0.4553697,2301.4,2301.3,24.74294561]
[1725715766681,0.4553697,2301.4,2301.3,27.01287577]
[1725715767540,0.4553697,2301.4,2301.3,22.66750577]
[1725715767770,0.4553697,2301.4,2301.3,20.39757561]
[1725715768975,0.4553697,2301.4,2301.3,22.66751741]
[1725715769487,0.4553697,2301.4,2301.3,20.39754781]
[1725715769975,0.4553697,2301.4,2301.3,22.66748874]
[1725715770359,0.4553697,2301.4,2301.3,20.39754781]
[1725715771064,0.4553697,2301.4,2301.3,22.66748884]
[1725715771565,0.4553697,2301.4,2301.3,20.39754781]
[1725715771764,0.4553697,2301.4,2301.3,22.66747508]
[1725715772579,0.4553697,2301.4,2301.3,22.66747265]
[1725715772887,0.4553697,2301.4,2301.3,22.66747178]
[1725715773178,0.4553697,2301.4,2301.3,20.39754781]
[1725715774366,0.4553697,2301.4,2301.3,20.39755025]
[1725715775865,0.4553697,2301.4,2301.3,22.66744926]
[1725715776265,0.4553697,2301.4,2301.3,22.12277118]
[1725715776482,0.4553697,2301.4,2301.3,19.85287217]
[1725715776786,0.4553697,2301.4,2301.3,20.39754774]
[1725715776983,0.4553697,2301.4,2301.3,22.66746904]
[1725715779101,0.4553697,2301.4,2301.3,22.66745782]
[1725715779298,0.4553697,2301.4,2301.3,20.21905782]
[1725715785986,0.4553697,2301.4,2301.3,19.67438225]
[1725715786768,0.4553697,2301.4,2301.3,22.53873523]
[1725715791808,0.4553697,2301.4,2301.3,21.99408225]
[1725715792309,0.4553697,2301.4,2301.3,26.33945225]
[1725715792516,0.4553697,2301.4,2301.3,27.65625287]
[1725715792813,0.4553697,2301.4,2301.3,26.33945225]
[1725715793820,0.4553697,2301.4,2301.3,26.3393124]
[1725715796106,0.4553697,2301.4,2301.3,19.6742424]
[1725715798701,0.4553697,2301.4,2301.3,19.67435077]
[1725715802140,0.4553697,2301.4,2301.3,15.8911756]
[1725715802340,0.4553697,2301.4,2301.3,26.33148848]
[1725715802504,7.27,2301.8,2301.7,8.68922]
[1725715802712,2.4072,2302.1,2302.0,8.68808]
[1725715803541,2.4072,2302.1,2301.9,8.68835]
[1725715803845,1.82813713,2302.1,2301.9,4.34412]
[1725715804144,5.78381049,2302.0,2301.7,4.34448]
[1725715804449,4.23533713,2301.8,2301.6,4.34478]
[1725715804751,4.23533713,2301.8,2301.3,4.53844155]
[1725715804752,4.23533713,2301.7,2301.3,4.53844155]
[1725715804902,3.37650258,2301.6,2301.4,4.34515]
[1725715805107,2.4072,2301.5,2301.4,4.34515]
[1725715805379,2.4072,2301.5,2301.3,4.53844155]
[1725715806726,2.4072,2301.5,2301.3,8.88370155]
[1725715808859,2.4072,2301.5,2301.4,4.34518]
[1725715815561,5.4072,2301.5,2301.4,4.34518]
[1725715815948,5.4072,2301.5,2301.3,4.53844155]
[1725715816278,5.4072,2301.5,2301.3,0.19326155]
[1725715816279,8.15245336,2301.4,2301.3,0.19326155]
[1725715816451,12.49763336,2301.4,2301.3,0.19326155]
[1725715816778,18.23779594,2301.4,2301.3,0.19326155]
[1725715816982,19.81863102,2301.4,2301.3,0.19326155]
[1725715817537,2.3043,2301.2,2300.7,8.69275]
[1725715817770,2.3043,2301.2,2300.6,4.34656]
[1725715817771,2.3043,2300.8,2300.6,4.34656]
[1725715818765,2.3043,2300.8,2300.6,8.69314]
[1725715819162,2.3043,2300.8,2300.6,4.34656]
[1725715819368,2.68957734,2300.8,2300.6,4.34656]
[1725715820185,3.0,2300.7,2300.6,4.34656]
[1725715820882,5.3043,2300.7,2300.6,4.34656]
[1725715827368,5.3043,2300.7,2300.5,4.34686]
[1725715828709,5.3043,2300.7,2300.6,4.34669]
[1725715830663,5.3043,2300.7,2300.4,4.34694]
[1725715830664,6.02598398,2300.7,2300.5,4.34681]
[1725715830867,7.57445734,2300.7,2300.5,4.34681]
[1725715831490,7.57445734,2300.7,2300.4,4.34694]
[1725715831688,2.4506,2300.6,2300.4,4.34694]
[1725715833130,2.4506,2300.6,2300.2,4.34731]
[1725715833131,1.54847336,2300.5,2300.3,4.34723]
[1725715835529,3.32897026,2300.6,2300.4,0.15689558]
[1725715836532,3.32897026,2300.6,2300.3,4.34723]
[1725715837323,3.32897026,2300.6,2300.4,4.34706]
[1725715837537,3.32897026,2300.6,2300.4,4.50395558]
[1725715837695,0.6846261,2300.6,2300.4,4.50395558]
[1725715843753,3.0,2300.7,2300.4,0.15689558]
[1725715844083,2.3795,2300.8,2300.6,4.34655]
[1725715844390,3.0,2301.0,2300.8,4.3462]
[1725715844391,4.54847336,2301.0,2300.8,4.3462]
[1725715844684,4.54847336,2301.0,2300.9,0.15671512]
[1725715845070,4.54847336,2301.0,2300.8,4.3462]
[1725715845687,2.3795,2300.9,2300.8,4.3462]
[1725715848887,2.3795,2300.9,2300.7,4.3465]
[1725715849084,1.54847336,2300.8,2300.7,4.3465]
[1725715849391,4.54847336,2300.8,2300.6,4.34667]
[1725715851445,4.54847336,2300.8,2300.7,4.3465]
[1725715851666,4.54847336,2300.8,2300.7,4.50320687]
[1725715851878,4.54847336,2300.8,2300.7,0.15670687]
[1725715852068,5.6758647,2300.8,2300.7,0.15670687]
[1725715853251,4.54847336,2300.8,2300.7,0.15670687]
[1725715857100,4.54847336,2300.8,2300.7,4.50320687]
[1725715857101,3.0,2300.8,2300.7,4.50320687]
[1725715857330,1.54847336,2301.0,2300.8,4.34622]
[1725715857331,3.0,2300.9,2300.8,4.34622]
[1725715857468,4.54847336,2301.0,2300.8,4.34622]
[1725715857863,4.54847336,2301.0,2300.8,4.50286945]
[1725715858783,6.37365681,2301.0,2300.8,4.50286945]
[1725715859197,4.54847336,2301.0,2300.8,4.50286945]